bitfinex/quotes_BTCUSD_20241203
["timestamp","ask_amount","ask_price","bid_price","bid_amount"]
[1733220932912,0.002,95564.0,95553.0,0.35104954]
[1733220933136,0.15,95567.0,95553.0,0.35104954]
[1733220933367,0.15,95567.0,95554.0,0.07142781]
[1733220933613,0.0008633,95564.0,95554.0,0.07142781]
[1733220934052,0.00262643,95563.0,95554.0,0.07142781]
[1733220934767,0.0008633,95564.0,95554.0,0.07142781]
[1733220935053,0.00262643,95563.0,95554.0,0.07142781]
[1733220935294,0.00262643,95563.0,95555.0,0.07190634]
[1733220935532,0.0008633,95564.0,95555.0,0.07190634]
[1733220935987,0.00262643,95563.0,95555.0,0.07190634]
[1733220936460,0.0008633,95564.0,95555.0,0.07190634]
[1733220936925,0.00262643,95563.0,95555.0,0.07190634]
[1733220937408,0.00262643,95563.0,95553.0,0.284407]
[1733220938366,0.00262643,95563.0,95553.0,0.0751]
[1733220945507,0.00262643,95563.0,95553.0,0.0751]
[1733220945715,0.00262643,95563.0,95554.0,0.209305]
[1733220946139,0.00262643,95563.0,95553.0,0.0751]
[1733220947453,0.00262643,95563.0,95553.0,0.0698]
[1733220947910,0.00262643,95563.0,95554.0,0.209305]
[1733220948321,0.00262643,95563.0,95553.0,0.09660103]
[1733220948532,0.0008633,95564.0,95553.0,0.09660103]
[1733220948740,0.0008633,95564.0,95554.0,0.209305]
[1733220948956,0.00263474,95563.0,95553.0,0.09660103]
[1733220949377,0.00263474,95563.0,95553.0,0.0698]
[1733220950785,0.00263474,95563.0,95554.0,0.209305]
[1733220951005,0.00263474,95563.0,95553.0,0.0698]
[1733220951762,0.00263474,95563.0,95554.0,0.209305]
[1733220952442,0.00263474,95563.0,95553.0,0.0698]
[1733220952890,0.00263474,95563.0,95554.0,0.209305]
[1733220953104,0.00263474,95563.0,95553.0,0.0698]
[1733220953533,0.00263474,95563.0,95554.0,0.209305]
[1733220954338,0.00263474,95563.0,95553.0,0.0698]
[1733220956372,0.15263474,95563.0,95553.0,0.0698]
[1733220956583,0.209299,95557.0,95551.0,0.0017264]
[1733220956935,0.209288,95562.0,95551.0,0.0017264]
[1733220956936,0.00261497,95556.0,95551.0,0.0017264]
[1733220957360,0.209288,95562.0,95553.0,0.0017268]
[1733220957696,0.00261511,95561.0,95553.0,0.0017268]
[1733220957913,0.209292,95560.0,95553.0,0.0017268]
[1733220958113,0.00261109,95559.0,95553.0,0.0017268]
[1733220958314,0.209288,95562.0,95553.0,0.0017268]
[1733220958590,0.2119031,95561.0,95553.0,0.0017268]
[1733220958727,0.4211931,95561.0,95553.0,0.0017268]
[1733220959728,0.209299,95557.0,95553.0,0.0017268]
[1733220960130,0.00260504,95556.0,95553.0,0.0017268]
[1733220960884,0.21029,95561.0,95553.0,0.0017268]
[1733220961086,0.00261306,95560.0,95553.0,0.0017268]
[1733220961518,0.00261306,95560.0,95553.0,0.0027268]
[1733220961740,0.209294,95559.0,95553.0,0.0027268]
[1733220961945,0.00260904,95558.0,95553.0,0.0027268]
[1733220962362,0.20929,95561.0,95553.0,0.0027268]
[1733220962577,0.00261306,95560.0,95553.0,0.0027268]
[1733220962799,0.209288,95562.0,95553.0,0.0027268]
[1733220963005,0.00261105,95559.0,95553.0,0.0027268]
[1733220963209,0.209288,95562.0,95553.0,0.0027268]
[1733220963693,0.209292,95560.0,95553.0,0.0027268]
[1733220963911,0.00261105,95559.0,95553.0,0.0017268]
[1733220964548,0.209296,95558.0,95553.0,0.0017268]
[1733220964794,0.209301,95556.0,95553.0,0.0017268]
[1733220965246,0.209305,95554.0,95553.0,0.0017268]
[1733220965483,0.21191419,95554.0,95553.0,0.0017268]
[1733220966175,0.00260919,95554.0,95553.0,0.0017268]
[1733220966388,0.209301,95556.0,95553.0,0.0017268]
[1733220966599,0.0026112,95555.0,95553.0,0.0017268]
[1733220966823,0.0026112,95555.0,95553.0,0.0027268]
[1733220967241,0.0026112,95555.0,95553.0,0.0017268]
[1733220967459,0.0026112,95555.0,95553.0,0.0037268]
[1733220967671,0.209297,95558.0,95553.0,0.0017268]
[1733220967883,0.00260999,95554.0,95553.0,0.0017268]
[1733220968095,0.00260999,95554.0,95553.0,0.0037268]
[1733220968305,0.209292,95560.0,95553.0,0.0037268]
[1733220968535,0.0026112,95559.0,95553.0,0.0037268]
[1733220968779,0.209296,95558.0,95553.0,0.0037268]
[1733220968987,0.00261603,95557.0,95553.0,0.0037268]
[1733220969268,0.00261603,95557.0,95553.0,0.0047268]
[1733220969648,0.209292,95560.0,95553.0,0.0047268]
[1733220969861,0.00260516,95556.0,95553.0,0.0017268]
[1733220970091,0.2101554,95560.0,95553.0,0.0037268]
[1733220970327,0.2101554,95560.0,95553.0,0.0017268]
[1733220970328,0.0008634,95560.0,95553.0,0.0017268]
[1733220970543,0.00262307,95559.0,95553.0,0.0017268]
[1733220973185,0.00262307,95559.0,95554.0,0.0771]
[1733220975142,0.00262307,95559.0,95556.0,0.082]
[1733220975366,0.0008634,95560.0,95559.0,0.209294]
[1733220975806,0.0008634,95560.0,95559.0,0.285194]
[1733220976237,0.00145021,95560.0,95559.0,0.285194]
[1733220976949,0.00145021,95560.0,95559.0,0.287194]
[1733220977159,0.00145021,95560.0,95559.0,0.292194]
[1733220980088,0.00145021,95560.0,95559.0,0.0829]
[1733220981817,0.02277458,95560.0,95559.0,0.0829]
[1733220985449,0.00145021,95560.0,95559.0,0.0829]
[1733220990253,0.02215843,95560.0,95559.0,0.0829]
[1733220990684,0.02215843,95560.0,95559.0,0.007]
[1733220994192,0.02215843,95560.0,95559.0,0.09827268]
[1733220994416,0.02015843,95560.0,95559.0,0.09827268]
[1733220995709,0.0008634,95563.0,95559.0,0.09827268]
[1733220995919,0.00093092,95563.0,95559.0,0.09827268]
[1733220996557,0.00093092,95563.0,95559.0,0.09627268]
[1733220996764,0.00093092,95563.0,95560.0,0.05434521]
[1733220997009,0.00093092,95563.0,95559.0,0.09227268]
[1733220997251,0.00093092,95563.0,95559.0,0.082]
[1733220997727,0.00093092,95563.0,95559.0,0.081]
[1733220998421,0.00093092,95563.0,95560.0,0.001]
[1733220999622,0.00093092,95563.0,95559.0,0.078]
[1733221000101,0.00093092,95563.0,95559.0,0.079]
[1733221000321,0.00093092,95563.0,95560.0,0.003]
[1733221000541,0.00093092,95563.0,95559.0,0.079]
[1733221000772,0.00093092,95563.0,95559.0,0.082]
[1733221001191,0.00093092,95563.0,95559.0,0.081]
[1733221001396,0.00093092,95563.0,95560.0,0.001]
[1733221002578,0.00093092,95563.0,95560.0,0.004]
[1733221002822,0.00093092,95563.0,95560.0,0.003]
[1733221003532,0.209288,95562.0,95560.0,0.003]
[1733221004062,0.209288,95562.0,95560.0,0.004]
[1733221004526,0.209288,95562.0,95560.0,0.003]
[1733221004740,0.209288,95562.0,95560.0,0.005]
[1733221005935,0.209288,95562.0,95560.0,0.002]
[1733221006160,0.209288,95562.0,95560.0,0.005]
[1733221007323,0.15,95569.0,95560.0,0.005]
[1733221007571,0.209288,95562.0,95560.0,0.005]
[1733221008037,0.209288,95562.0,95560.0,0.00544194]
[1733221008275,0.209288,95562.0,95560.0,0.00344194]
[1733221010700,0.209288,95562.0,95560.0,0.00544194]
[1733221010938,0.0212199,95561.0,95560.0,0.00544194]
[1733221011428,0.02139957,95561.0,95560.0,0.00544194]
[1733221012128,0.17139957,95561.0,95560.0,0.00544194]
[1733221012369,0.17139957,95561.0,95560.0,0.00044194]
[1733221012579,0.17139957,95561.0,95560.0,0.00444194]
[1733221012784,0.17139957,95561.0,95560.0,0.00644194]
[1733221015175,0.15017967,95561.0,95560.0,0.00816854]
[1733221015400,0.25489226,95561.0,95560.0,0.00816854]
[1733221015615,0.37664839,95561.0,95560.0,0.00816854]
[1733221016272,0.37664839,95561.0,95560.0,0.00616854]
[1733221016495,0.37664839,95561.0,95560.0,0.00216854]
[1733221016904,0.37864839,95561.0,95560.0,0.00216854]
[1733221017539,0.38064839,95561.0,95560.0,0.00216854]
[1733221026720,0.38046872,95561.0,95560.0,0.00216854]
[1733221027575,0.30426872,95561.0,95560.0,0.00216854]
[1733221028770,0.25926872,95561.0,95560.0,0.00216854]
[1733221028986,0.15455613,95561.0,95560.0,0.00216854]
[1733221032741,0.15055613,95561.0,95560.0,0.00216854]
[1733221033150,0.15255613,95561.0,95560.0,0.00216854]
[1733221040829,0.152,95561.0,95560.0,0.00216854]
[1733221045137,0.25689226,95561.0,95560.0,0.00216854]
[1733221045278,0.25744928,95561.0,95560.0,0.00216854]
[1733221050345,0.27848765,95561.0,95560.0,0.00216854]
[1733221052688,0.27830798,95561.0,95560.0,0.00216854]
[1733221055294,0.25726961,95561.0,95560.0,0.00216854]
[1733221060802,0.2571912,95561.0,95560.0,0.00216854]
[1733221069692,0.2571912,95561.0,95560.0,0.00206064]
[1733221074123,0.2580545,95561.0,95560.0,0.00206064]
[1733221078457,0.4580545,95561.0,95560.0,6.4e-07]
[1733221078656,0.45823417,95561.0,95560.0,6.4e-07]
[1733221079478,0.45623417,95561.0,95560.0,6.4e-07]
[1733221079680,0.45823417,95561.0,95560.0,0.00100064]
[1733221080526,0.47929496,95561.0,95560.0,0.00100064]
[1733221081354,0.48229496,95561.0,95560.0,0.00100064]
[1733221083515,0.48229496,95561.0,95560.0,6.4e-07]
[1733221083720,0.46123417,95561.0,95560.0,6.4e-07]
[1733221085632,0.46123417,95561.0,95560.0,0.00172724]
[1733221091666,0.46067715,95561.0,95560.0,0.00172724]
[1733221094871,0.46057736,95561.0,95560.0,0.00172724]
[1733221095719,0.53557736,95561.0,95560.0,2.4e-07]
[1733221097761,0.58187736,95561.0,95560.0,2.4e-07]
[1733221097903,0.559305,95554.0,95553.0,4e-08]
[1733221098315,0.35,95552.0,95551.0,3e-08]
[1733221098520,0.45471259,95552.0,95551.0,3e-08]
[1733221099565,0.46171259,95552.0,95551.0,0.00100003]
[1733221100644,0.46471259,95552.0,95551.0,0.00100003]
[1733221101107,0.46471259,95552.0,95551.0,3e-08]
[1733221101321,0.46544966,95552.0,95551.0,3e-08]
[1733221102820,0.56865,95545.0,95536.0,0.0761]
[1733221103035,0.15,95542.0,95536.0,0.0761]
[1733221103241,0.25471259,95542.0,95536.0,0.0761]
[1733221105744,0.26371259,95542.0,95541.0,0.0027266]
[1733221106405,0.26771259,95542.0,95541.0,0.0027266]
[1733221109048,0.26789226,95542.0,95541.0,0.0027266]
[1733221129325,0.26771259,95542.0,95541.0,0.0820266]
[1733221130949,0.26789226,95542.0,95541.0,0.0820266]
[1733221131345,0.26789226,95542.0,95541.0,0.07589262]
[1733221132381,0.26789226,95542.0,95541.0,0.07761962]
[1733221137632,0.25789226,95542.0,95541.0,0.07761962]
[1733221140665,0.24789226,95542.0,95541.0,0.07761962]
[1733221142582,0.14317967,95542.0,95541.0,0.07761962]
[1733221150086,0.14317967,95542.0,95541.0,0.07395361]
[1733221155329,0.14404327,95542.0,95541.0,0.07395361]
[1733221172145,0.14527808,95542.0,95541.0,0.07395361]
[1733221173416,0.14583557,95542.0,95541.0,0.07395361]
[1733221177018,0.14639012,95542.0,95541.0,0.07395361]
[1733221180098,0.14639012,95542.0,95541.0,0.001727]
[1733221184195,0.14460076,95542.0,95541.0,0.001727]
[1733221186849,0.14669523,95542.0,95541.0,0.001727]
[1733221187251,0.14681612,95542.0,95541.0,0.001727]
[1733221189494,0.25152871,95542.0,95541.0,0.001727]
[1733221193731,0.24752871,95542.0,95541.0,0.001727]
[1733221194157,0.23852871,95542.0,95541.0,0.001727]
[1733221194367,0.24752871,95542.0,95541.0,0.002727]
[1733221195027,0.24752871,95542.0,95541.0,0.003727]
[1733221195028,0.25352871,95542.0,95541.0,0.003727]
[1733221195447,0.24752871,95542.0,95541.0,0.002727]
[1733221196108,0.31752871,95542.0,95541.0,0.002727]
[1733221196540,0.46752871,95542.0,95541.0,0.002727]
[1733221196751,0.47352871,95542.0,95541.0,0.003727]
[1733221196978,0.559334,95541.0,95540.0,1e-06]
[1733221197193,0.66699916,95541.0,95540.0,1e-06]
[1733221197656,0.94993908,95541.0,95540.0,1e-06]
[1733221197887,0.66699916,95541.0,95540.0,1e-06]
[1733221198102,0.74229916,95541.0,95540.0,1e-06]
[1733221198321,0.74829916,95541.0,95540.0,1e-06]
[1733221199396,0.75729916,95541.0,95540.0,1e-06]
[1733221201255,1.03976447,95541.0,95540.0,1e-06]
[1733221202329,0.75729916,95541.0,95540.0,1e-06]
[1733221204281,0.75729916,95541.0,95540.0,2e-07]
[1733221206201,1.03944492,95541.0,95540.0,2e-07]
[1733221206811,0.75729916,95541.0,95540.0,2e-07]
[1733221207010,0.75640924,95541.0,95540.0,2e-07]
[1733221207449,1.03850677,95541.0,95540.0,2e-07]
[1733221209149,0.75640924,95541.0,95540.0,2e-07]
[1733221209822,1.03850677,95541.0,95540.0,2e-07]
[1733221210229,0.75640924,95541.0,95540.0,2e-07]
[1733221216466,0.75727284,95541.0,95540.0,2e-07]
[1733221223423,0.68197284,95541.0,95540.0,2e-07]
[1733221223680,0.48046773,95541.0,95540.0,2e-07]
[1733221223921,0.48046773,95541.0,95540.0,0.0799002]
[1733221224639,0.4806474,95541.0,95540.0,0.0799002]
[1733221225122,0.4841875,95541.0,95540.0,0.0799002]
[1733221225841,0.4781875,95541.0,95540.0,0.0799002]
[1733221226087,0.4691875,95541.0,95540.0,0.0799002]
[1733221226274,0.4841875,95541.0,95540.0,0.0809002]
[1733221227037,0.48472873,95541.0,95540.0,0.0809002]
[1733221229842,0.48194834,95541.0,95540.0,0.0809002]
[1733221231527,0.48194834,95541.0,95540.0,0.07660214]
[1733221231751,0.4846182,95541.0,95540.0,0.07660214]
[1733221235615,0.48053687,95541.0,95540.0,0.07660214]
[1733221235844,0.3303572,95541.0,95540.0,0.07660214]
[1733221236802,0.33053687,95541.0,95540.0,0.07660214]
[1733221237006,0.33053687,95541.0,95540.0,0.07524681]
[1733221237007,0.48053687,95541.0,95540.0,0.07524681]
[1733221237223,0.48053687,95541.0,95540.0,0.07334369]
[1733221237673,0.48053687,95541.0,95540.0,0.11994369]
[1733221237865,0.48053687,95541.0,95540.0,0.11756309]
[1733221239602,0.33053687,95541.0,95540.0,0.11756309]
[1733221241280,0.33053687,95541.0,95540.0,0.11929029]
[1733221244679,0.33167626,95541.0,95540.0,0.11929029]
[1733221244907,0.3361743,95541.0,95540.0,0.11929029]
[1733221248201,0.33561676,95541.0,95540.0,0.11929029]
[1733221253013,0.32997933,95541.0,95540.0,0.11929029]
[1733221258767,0.33687344,95541.0,95540.0,0.07269029]
[1733221258984,0.48687344,95541.0,95540.0,0.0027272]
[1733221262120,0.48705978,95541.0,95540.0,0.0027272]
[1733221262747,0.48789765,95541.0,95540.0,0.0027272]
[1733221264685,0.28134404,95541.0,95540.0,0.0027272]
[1733221265385,0.27426359,95541.0,95540.0,0.0027272]
[1733221265816,0.27408392,95541.0,95540.0,0.0027272]
[1733221266033,0.27408392,95541.0,95540.0,0.0847272]
[1733221268918,0.28121633,95541.0,95540.0,0.0847272]
[1733221272166,0.28021633,95541.0,95540.0,0.0847272]
[1733221284964,0.28021633,95541.0,95540.0,0.0027272]
[1733221285894,0.280396,95541.0,95540.0,0.0027272]
[1733221287766,0.27951329,95541.0,95540.0,0.0027272]
[1733221293909,0.27941508,95541.0,95540.0,0.0027272]
[1733221297413,0.27941508,95541.0,95540.0,0.0024046]
[1733221300254,0.28087059,95541.0,95540.0,0.0024046]
[1733221303593,0.27187059,95541.0,95540.0,0.0024046]
[1733221304145,0.28087059,95541.0,95540.0,0.0024046]
[1733221304603,0.27487059,95541.0,95540.0,0.0017272]
[1733221304818,0.28087059,95541.0,95540.0,0.0027272]
[1733221308608,0.27370448,95541.0,95540.0,0.0017272]
[1733221308835,0.26470448,95541.0,95540.0,0.0017272]
[1733221309037,0.27070448,95541.0,95540.0,0.0027272]
[1733221309240,0.27970448,95541.0,95540.0,0.0027272]
[1733221309453,0.27370448,95541.0,95540.0,0.0017272]
[1733221309945,0.28270448,95541.0,95540.0,0.0017272]
[1733221310805,0.28870448,95541.0,95540.0,0.0017272]
[1733221311252,0.48770448,95541.0,95540.0,0.0017272]
[1733221312098,0.46370448,95541.0,95540.0,0.0017272]
[1733221312537,0.47870448,95541.0,95540.0,0.0017272]
[1733221312743,0.46970448,95541.0,95540.0,0.0017272]
[1733221313160,0.47870448,95541.0,95540.0,0.0017272]
[1733221313841,0.47270448,95541.0,95540.0,0.0017272]
[1733221314047,0.47870448,95541.0,95540.0,0.0017272]
[1733221324984,0.47853173,95541.0,95540.0,0.0017272]
[1733221327802,0.47139932,95541.0,95540.0,0.0017272]
[1733221328907,0.46239932,95541.0,95540.0,0.0017272]
[1733221329125,0.47139932,95541.0,95540.0,0.0017272]
[1733221329377,0.46539932,95541.0,95540.0,0.0017272]
[1733221329603,0.47139932,95541.0,95540.0,0.0017272]
[1733221330227,0.70690778,95541.0,95540.0,0.0017272]
[1733221330431,0.47139932,95541.0,95540.0,0.0017272]
[1733221332448,0.47854896,95541.0,95540.0,0.0017272]
[1733221340472,0.27954896,95541.0,95540.0,0.0017272]
[1733221352170,0.47854896,95541.0,95540.0,0.0017272]
[1733221352385,0.55374896,95541.0,95540.0,0.0017272]
[1733221352590,1.08664496,95541.0,95540.0,0.0017272]
[1733221353410,1.08720254,95541.0,95540.0,0.0017272]
[1733221354443,0.199,95531.0,95527.0,0.0017264]
[1733221354652,0.25471259,95530.0,95527.0,0.0017264]
[1733221354867,0.25876836,95530.0,95527.0,0.0017264]
[1733221355073,0.00055758,95529.0,95527.0,0.0017264]
[1733221355284,0.10471259,95528.0,95527.0,0.0017264]
[1733221355494,0.25489226,95528.0,95527.0,0.0017264]
[1733221355803,0.25956023,95528.0,95527.0,0.0017264]
[1733221356041,0.25956023,95528.0,95527.0,0.0027264]
[1733221356246,0.25956023,95528.0,95527.0,0.0017264]
[1733221356461,0.26356023,95528.0,95527.0,0.0017264]
[1733221357710,0.26556023,95528.0,95527.0,0.0017264]
[1733221358349,0.26356023,95528.0,95527.0,0.0017264]
[1733221358555,0.26156023,95528.0,95527.0,0.0017264]
[1733221358974,0.26556023,95528.0,95527.0,0.0017264]
[1733221359410,0.26556023,95528.0,95527.0,0.0795264]
[1733221363384,0.26500265,95528.0,95527.0,0.0795264]
[1733221363597,0.26556024,95528.0,95527.0,0.0795264]
[1733221364475,0.26356024,95528.0,95527.0,0.0795264]
[1733221364674,0.25956024,95528.0,95527.0,0.0795264]
[1733221365083,0.26356024,95528.0,95527.0,0.0795264]
[1733221365291,0.26556024,95528.0,95527.0,0.0795264]
[1733221365500,0.26156024,95528.0,95527.0,0.1260264]
[1733221365700,0.26556024,95528.0,95527.0,0.1260264]
[1733221366511,0.26156024,95528.0,95527.0,0.1260264]
[1733221366715,0.25956024,95528.0,95527.0,0.1260264]
[1733221367043,0.26156024,95528.0,95527.0,0.1260264]
[1733221367457,0.25956024,95528.0,95527.0,0.1260264]
[1733221367858,0.26156024,95528.0,95527.0,0.1260264]
[1733221368084,0.26556024,95528.0,95527.0,0.1260264]
[1733221373888,0.26556024,95528.0,95527.0,0.0795264]
[1733221378469,0.26500265,95528.0,95527.0,0.0795264]
[1733221381317,0.26500265,95528.0,95527.0,0.0017264]
[1733221387982,0.26100265,95528.0,95527.0,0.0017264]
[1733221388192,0.26500265,95528.0,95527.0,0.0017264]
[1733221388845,0.26300265,95528.0,95527.0,0.0017264]
[1733221389269,0.26500265,95528.0,95527.0,0.0017264]
[1733221389921,0.26500265,95528.0,95527.0,0.00161846]
[1733221394039,0.26100265,95528.0,95527.0,0.00161846]
[1733221394256,0.27000265,95528.0,95527.0,0.00161846]
[1733221394467,0.26800265,95528.0,95527.0,0.00161846]
[1733221394664,0.27400265,95528.0,95527.0,0.00261846]
[1733221395109,0.28300265,95528.0,95527.0,0.00261846]
[1733221395318,0.25900265,95528.0,95527.0,0.00161846]
[1733221395529,0.26500265,95528.0,95527.0,0.00261846]
[1733221396166,0.26500265,95528.0,95527.0,0.00161846]
[1733221396167,0.25900265,95528.0,95527.0,0.00161846]
[1733221396389,0.26500265,95528.0,95527.0,0.00261846]
[1733221396819,0.27400265,95528.0,95527.0,0.00261846]
[1733221397038,0.26500265,95528.0,95527.0,0.00261846]
[1733221397248,0.27400265,95528.0,95527.0,0.00261846]
[1733221401566,0.27400265,95528.0,95527.0,0.00240321]
[1733221403178,0.27387315,95528.0,95527.0,0.00240321]
[1733221412292,0.27369348,95528.0,95527.0,0.00240321]
[1733221412517,0.27369348,95528.0,95527.0,0.08060321]
[1733221416267,0.16997379,95528.0,95527.0,0.08060321]
[1733221416486,0.01997379,95528.0,95527.0,0.12930321]
[1733221416694,0.01592198,95528.0,95527.0,0.12930321]
[1733221418171,0.01610165,95528.0,95527.0,0.12930321]
[1733221423150,0.01610165,95528.0,95527.0,0.14240617]
[1733221423386,0.01610165,95528.0,95527.0,0.12930321]
[1733221423603,0.01592198,95528.0,95527.0,0.12930321]
[1733221423850,0.01592198,95528.0,95527.0,0.13115586]
[1733221424318,0.00992198,95528.0,95527.0,0.13015586]
[1733221424524,0.00092198,95528.0,95527.0,0.13015586]
[1733221424740,0.00692198,95528.0,95527.0,0.12972117]
[1733221425660,0.01592198,95528.0,95527.0,0.12972117]
[1733221426270,0.0135959,95528.0,95527.0,0.12872117]
[1733221426711,0.0195959,95528.0,95527.0,0.12972117]
[1733221426935,0.0201535,95528.0,95527.0,0.12972117]
[1733221427135,0.0141535,95528.0,95527.0,0.12872117]
[1733221427345,0.0051535,95528.0,95527.0,0.12872117]
[1733221427555,0.0111535,95528.0,95527.0,0.12872117]
[1733221427768,0.0201535,95528.0,95527.0,0.12872117]
[1733221429686,0.0201535,95528.0,95527.0,0.13044797]
[1733221434696,0.0201535,95528.0,95527.0,0.14366541]
[1733221435315,0.0135959,95528.0,95527.0,0.13044797]
[1733221435524,0.0045959,95528.0,95527.0,0.13044797]
[1733221435744,0.0185959,95528.0,95527.0,0.13044797]
[1733221436419,0.0185959,95528.0,95527.0,0.11814944]
[1733221441605,0.0045959,95528.0,95527.0,0.11814944]
[1733221441803,0.0075959,95528.0,95527.0,0.11814944]
[1733221442449,0.0135959,95528.0,95527.0,0.11814944]
[1733221447787,0.00992198,95528.0,95527.0,0.11814944]
[1733221449061,0.01359223,95528.0,95527.0,0.11814944]
[1733221449308,0.01359223,95528.0,95527.0,0.15013702]
[1733221449546,0.01359223,95528.0,95527.0,0.35013702]
[1733221449769,0.00992198,95528.0,95527.0,0.34828437]
[1733221450539,0.00392198,95528.0,95527.0,0.34828437]
[1733221450752,0.00492198,95528.0,95527.0,0.31629679]
[1733221451209,0.00692198,95528.0,95527.0,0.31629679]
[1733221451425,0.00105205,95528.0,95527.0,0.31629679]
[1733221452496,0.00105205,95528.0,95527.0,0.32566079]
[1733221454000,0.03,95529.0,95528.0,0.0787]
[1733221454250,0.03,95529.0,95528.0,0.18338388]
[1733221454726,0.03,95529.0,95528.0,0.38438388]
[1733221454944,0.03,95529.0,95528.0,0.38253146]
[1733221455369,0.03,95529.0,95528.0,0.38553146]
[1733221456601,0.03,95529.0,95528.0,0.38622049]
[1733221456849,0.0008634,95540.0,95529.0,0.2821]
[1733221457076,0.0008634,95540.0,95531.0,0.0823]
[1733221457290,0.00366627,95539.0,95532.0,0.00185242]
[1733221457492,0.0008634,95540.0,95532.0,0.00185242]
[1733221458116,0.0068634,95540.0,95533.0,0.082]
[1733221458319,0.0028634,95540.0,95534.0,0.00185242]
[1733221458527,0.0028634,95540.0,95534.0,0.06114842]
[1733221458742,0.003,95539.0,95534.0,0.06114842]
[1733221458949,0.0028634,95540.0,95534.0,0.06114842]
[1733221459402,0.0068634,95540.0,95534.0,0.06114842]
[1733221460308,0.0068634,95540.0,95534.0,0.00185242]
[1733221460309,0.0048634,95540.0,95534.0,0.00185242]
[1733221460527,0.0028634,95540.0,95534.0,0.00185242]
[1733221460736,0.00365852,95539.0,95534.0,0.00185242]
[1733221462037,0.00565852,95539.0,95534.0,0.00185242]
[1733221462455,0.00865852,95539.0,95534.0,0.00185242]
[1733221462671,0.21799852,95539.0,95534.0,0.00185242]
[1733221463361,0.00865852,95539.0,95534.0,0.00185242]
[1733221463566,0.20934,95538.0,95534.0,0.00185242]
[1733221463780,0.00865852,95539.0,95534.0,0.00185242]
[1733221464027,0.00366368,95537.0,95534.0,0.00185242]
[1733221464238,0.00367042,95536.0,95534.0,0.00185242]
[1733221464661,0.005,95539.0,95534.0,0.00185242]
[1733221464662,0.003,95539.0,95534.0,0.00185242]
[1733221464871,0.00366844,95535.0,95534.0,0.00185242]
[1733221465085,0.003,95539.0,95534.0,0.00185242]
[1733221465310,0.0008634,95540.0,95534.0,0.00185242]
[1733221465541,0.001,95536.0,95534.0,0.00185242]
[1733221465993,0.00366844,95535.0,95534.0,0.00185242]
[1733221466224,0.001,95536.0,95534.0,0.00185242]
[1733221466459,0.00366844,95535.0,95534.0,0.00185242]
[1733221467197,0.00566844,95535.0,95534.0,0.00185242]
[1733221467411,0.0056506,95535.0,95534.0,0.00185242]
[1733221468711,0.002,95535.0,95534.0,0.00185242]
[1733221471391,0.00566598,95535.0,95534.0,0.00185242]
[1733221471986,0.00336048,95535.0,95534.0,0.00185242]
[1733221472202,0.41406066,95538.0,95537.0,0.001]
[1733221472371,0.41742708,95538.0,95537.0,0.001]
[1733221472544,0.41760675,95538.0,95537.0,0.001]
[1733221473355,0.41960675,95538.0,95537.0,0.001]
[1733221473763,0.42160675,95538.0,95537.0,0.001]
[1733221478137,0.42160675,95538.0,95535.0,0.001]
[1733221478572,0.42160675,95538.0,95537.0,0.001]
[1733221479033,0.42160675,95538.0,95535.0,0.001]
[1733221479244,0.41960675,95538.0,95535.0,0.001]
[1733221479464,0.42160675,95538.0,95535.0,0.001]
[1733221479684,0.00017967,95537.0,95535.0,0.001]
[1733221479907,0.209345,95536.0,95535.0,0.001]
[1733221480120,0.21270746,95536.0,95535.0,0.001]
[1733221480543,0.21288713,95536.0,95534.0,0.0017266]
[1733221480762,0.22357371,95536.0,95534.0,0.0017266]
[1733221480984,0.00017967,95535.0,95534.0,0.0017266]
[1733221481199,0.00354639,95535.0,95534.0,0.0017266]
[1733221481618,0.01441264,95535.0,95534.0,0.0017266]
[1733221483133,0.01641264,95535.0,95534.0,0.0017266]
[1733221484021,0.01841264,95535.0,95534.0,0.0017266]
[1733221485977,0.00736672,95535.0,95534.0,0.02365747]
[1733221486601,0.00336672,95535.0,95534.0,0.02365747]
[1733221487012,0.00436672,95535.0,95534.0,0.02365747]
[1733221487219,0.00436672,95535.0,95534.0,0.0027266]
[1733221488764,0.00436672,95535.0,95534.0,0.00457921]
[1733221488962,0.00436672,95535.0,95534.0,0.0027266]
[1733221489173,0.00336672,95535.0,95534.0,0.0027266]
[1733221489421,0.00436672,95535.0,95534.0,0.00457913]
[1733221489626,0.00436592,95535.0,95534.0,0.00457913]
[1733221489849,0.00336592,95535.0,95534.0,0.03834999]
[1733221490050,0.20471966,95538.0,95534.0,0.03834999]
[1733221490257,0.00336592,95535.0,95534.0,0.03934999]
[1733221490468,0.20471966,95538.0,95534.0,0.03934999]
[1733221490674,0.00336592,95535.0,95534.0,0.03834999]
[1733221490886,0.20489933,95538.0,95534.0,0.03934999]
[1733221491095,0.00336606,95535.0,95534.0,0.03934999]
[1733221491303,0.20489933,95538.0,95534.0,0.03834999]
[1733221491526,0.0033662,95535.0,95534.0,0.03834999]
[1733221491752,0.00104297,95538.0,95537.0,0.001]
[1733221491976,0.00104297,95538.0,95537.0,0.00285247]
[1733221492199,0.00539926,95538.0,95537.0,0.001]
[1733221492898,0.00439926,95538.0,95537.0,0.001]
[1733221493144,0.00539926,95538.0,95537.0,0.001]
[1733221495130,0.00639926,95538.0,95537.0,0.001]
[1733221495767,0.00439926,95538.0,95537.0,0.001]
[1733221496204,0.00539926,95538.0,95537.0,0.001]
[1733221497069,0.00639926,95538.0,95537.0,0.001]
[1733221504379,0.418685,95537.0,95534.0,0.0027266]
[1733221504809,0.209347,95535.0,95534.0,0.0027266]
[1733221505248,0.21282291,95535.0,95534.0,0.0027266]
[1733221505919,0.21282291,95535.0,95534.0,0.0017266]
[1733221507970,0.21282291,95535.0,95534.0,0.0027266]
[1733221511838,0.22369915,95535.0,95534.0,0.0027266]
[1733221514547,0.37369915,95535.0,95534.0,0.0027266]
[1733221515926,0.37369915,95535.0,95534.0,0.05454351]
[1733221516126,0.37369915,95535.0,95534.0,0.13734351]
[1733221516539,0.01435215,95535.0,95534.0,0.13734351]
[1733221517395,0.01435215,95535.0,95534.0,0.0865266]
[1733221518459,0.01435215,95535.0,95534.0,0.08837915]
[1733221519682,0.01435215,95535.0,95534.0,0.0865266]
[1733221520130,0.01435215,95535.0,95534.0,0.08837914]
[1733221520388,0.22269915,95535.0,95534.0,0.08837914]
[1733221520629,0.22269915,95535.0,95534.0,0.13822877]
[1733221521322,0.00247591,95535.0,95534.0,0.13822877]
[1733221521545,0.00247591,95535.0,95534.0,0.14008131]
[1733221521774,0.209346,95536.0,95534.0,0.13822877]
[1733221521996,0.00263376,95535.0,95534.0,0.0865266]
[1733221522688,0.00263376,95535.0,95534.0,0.0855266]
[1733221525091,0.01351439,95535.0,95534.0,0.0037266]
[1733221525316,0.01351439,95535.0,95534.0,0.0027266]
[1733221525544,0.01351439,95535.0,95534.0,0.0037266]